[Event "Early-Titled-Tuesday-Blitz-February-27-2024"]
[Site "Chess.com"]
[Date "2024.02.27"]
[Round "11"]
[White "DumbKing75"]
[Black "kids2010"]
[Result "0-1"]
[WhiteElo "2646"]
[BlackElo "2874"]
[TimeControl "180+1"]
[EndTime "10:03:55 PST"]
[Termination "kids2010 won by resignation"]

1. d4 {[%clk 0:03:00.9]} 1... d5 {[%clk 0:02:59.3]} 2. Bf4 {[%clk 0:02:59.3]}
2... c5 {[%clk 0:02:58.7]} 3. e3 {[%clk 0:02:58.4]} 3... Nc6 {[%clk 0:02:53.9]}
4. c3 {[%clk 0:02:56.2]} 4... Nf6 {[%clk 0:02:49]} 5. Nd2 {[%clk 0:02:53.7]}
5... e6 {[%clk 0:02:49.1]} 6. Ngf3 {[%clk 0:02:52.1]} 6... cxd4 {[%clk
0:02:49.5]} 7. exd4 {[%clk 0:02:51.6]} 7... Nh5 {[%clk 0:02:48.2]} 8. Be3 {[%clk
0:02:24.2]} 8... Bd6 {[%clk 0:02:45.3]} 9. Ne5 {[%clk 0:02:09.1]} 9... g6 {[%clk
0:02:43.6]} 10. Bb5 {[%clk 0:02:06.2]} 10... Bd7 {[%clk 0:02:39.9]} 11. Nxd7
{[%clk 0:02:00.8]} 11... Qxd7 {[%clk 0:02:36.2]} 12. O-O {[%clk 0:01:51.3]}
12... O-O {[%clk 0:02:33.1]} 13. Nf3 {[%clk 0:01:48.8]} 13... f6 {[%clk
0:02:31.4]} 14. Re1 {[%clk 0:01:47.3]} 14... Ng7 {[%clk 0:02:30.3]} 15. c4
{[%clk 0:01:40.3]} 15... a6 {[%clk 0:02:28.6]} 16. Ba4 {[%clk 0:01:35.6]} 16...
Nf5 {[%clk 0:02:26.6]} 17. cxd5 {[%clk 0:01:33.9]} 17... exd5 {[%clk 0:02:27.5]}
18. Bb3 {[%clk 0:01:32.6]} 18... Bc7 {[%clk 0:02:27.5]} 19. Rc1 {[%clk
0:01:25.9]} 19... Kg7 {[%clk 0:02:24.6]} 20. Qd2 {[%clk 0:01:21.5]} 20... Ba5
{[%clk 0:02:21.4]} 21. Qd3 {[%clk 0:00:51.2]} 21... Bxe1 {[%clk 0:02:13.9]} 22.
Rxe1 {[%clk 0:00:52.1]} 22... Rae8 {[%clk 0:02:13.1]} 23. Bd2 {[%clk 0:00:52.4]}
23... Rxe1+ {[%clk 0:02:12.6]} 24. Bxe1 {[%clk 0:00:53.3]} 24... Re8 {[%clk
0:02:13.1]} 25. Bc3 {[%clk 0:00:52.3]} 25... Qe6 {[%clk 0:02:05.8]} 26. h3
{[%clk 0:00:48.8]} 26... b5 {[%clk 0:02:06]} 27. a3 {[%clk 0:00:48.4]} 27... Nd6
{[%clk 0:02:03.1]} 28. Bd1 {[%clk 0:00:32.1]} 28... Nc4 {[%clk 0:02:01.1]} 29.
a4 {[%clk 0:00:30.3]} 29... b4 {[%clk 0:01:57.2]} 30. Be1 {[%clk 0:00:30.9]}
30... Nxb2 {[%clk 0:01:49.6]} 31. Qc2 {[%clk 0:00:24.3]} 31... Nxd1 {[%clk
0:01:49.5]} 32. Qxd1 {[%clk 0:00:25.2]} 32... a5 {[%clk 0:01:47.9]} 33. Qc1
{[%clk 0:00:25.1]} 33... Nxd4 {[%clk 0:01:48.1]} 0-1

[Event "Early-Titled-Tuesday-Blitz-February-27-2024"]
[Site "Chess.com"]
[Date "2024.02.27"]
[Round "11"]
[White "xasid81"]
[Black "BilicVladimir"]
[Result "1-0"]
[WhiteElo "2579"]
[BlackElo "2679"]
[TimeControl "180+1"]
[EndTime "10:03:59 PST"]
[Termination "xasid81 won by resignation"]

1. e4 {[%clk 0:03:00.9]} 1... e6 {[%clk 0:02:59.7]} 2. d4 {[%clk 0:03:00.3]}
2... d5 {[%clk 0:03:00.4]} 3. Nc3 {[%clk 0:02:59.9]} 3... Nf6 {[%clk 0:03:00]}
4. exd5 {[%clk 0:03:00]} 4... exd5 {[%clk 0:02:59.6]} 5. Nf3 {[%clk 0:02:57.1]}
5... Bd6 {[%clk 0:02:59]} 6. Bd3 {[%clk 0:02:55.5]} 6... O-O {[%clk 0:02:58.8]}
7. O-O {[%clk 0:02:55.1]} 7... c6 {[%clk 0:02:58.7]} 8. h3 {[%clk 0:02:54.9]}
8... h6 {[%clk 0:02:58.1]} 9. Ne2 {[%clk 0:02:54.6]} 9... Nbd7 {[%clk
0:02:57.5]} 10. Bf4 {[%clk 0:02:54.4]} 10... Qc7 {[%clk 0:02:57.3]} 11. Qd2
{[%clk 0:02:53.9]} 11... Re8 {[%clk 0:02:57.4]} 12. Bxd6 {[%clk 0:02:52.9]}
12... Qxd6 {[%clk 0:02:57.1]} 13. Rfe1 {[%clk 0:02:53.6]} 13... Nf8 {[%clk
0:02:57]} 14. Ng3 {[%clk 0:02:52.4]} 14... Bd7 {[%clk 0:02:55.9]} 15. Ne5 {[%clk
0:02:51.6]} 15... Re7 {[%clk 0:02:48.8]} 16. Bf5 {[%clk 0:02:46.8]} 16... Rae8
{[%clk 0:02:47.3]} 17. Bxd7 {[%clk 0:02:46]} 17... N8xd7 {[%clk 0:02:41.4]} 18.
Nf5 {[%clk 0:02:45.3]} 18... Qc7 {[%clk 0:02:38.7]} 19. Nxe7+ {[%clk 0:02:45.5]}
19... Rxe7 {[%clk 0:02:39.1]} 20. Nxd7 {[%clk 0:02:45]} 20... Rxd7 {[%clk
0:02:39.1]} 21. c3 {[%clk 0:02:44.9]} 21... Ne4 {[%clk 0:02:37.6]} 22. Qc2
{[%clk 0:02:44.1]} 22... Qf4 {[%clk 0:02:36.2]} 23. Re3 {[%clk 0:02:41.9]} 23...
Rd6 {[%clk 0:02:30.2]} 24. Rae1 {[%clk 0:02:41.7]} 24... Rg6 {[%clk 0:02:29.2]}
25. Rxe4 {[%clk 0:02:34.6]} 25... dxe4 {[%clk 0:02:28.1]} 26. Rxe4 {[%clk
0:02:32.5]} 26... Qd6 {[%clk 0:02:16.1]} 27. Qe2 {[%clk 0:02:27.7]} 27... Qd5
{[%clk 0:02:12]} 28. a3 {[%clk 0:02:27.2]} 28... Rf6 {[%clk 0:02:03.3]} 29. Re8+
{[%clk 0:02:25.3]} 29... Kh7 {[%clk 0:02:03.1]} 30. Qe4+ {[%clk 0:02:25.9]}
30... Qxe4 {[%clk 0:01:57.2]} 31. Rxe4 {[%clk 0:02:26.8]} 31... Rf5 {[%clk
0:01:56.4]} 32. Re7 {[%clk 0:02:26.1]} 32... Rb5 {[%clk 0:01:56.2]} 33. b4
{[%clk 0:02:26.3]} 33... Kg6 {[%clk 0:01:55.6]} 34. Kf1 {[%clk 0:02:19.4]} 34...
Kf6 {[%clk 0:01:55.1]} 35. Rc7 {[%clk 0:02:18]} 35... a5 {[%clk 0:01:53.4]} 36.
a4 {[%clk 0:02:09.9]} 36... Rb6 {[%clk 0:01:50.6]} 37. bxa5 {[%clk 0:02:09.8]}
37... Rb3 {[%clk 0:01:50.4]} 38. a6 {[%clk 0:02:09.3]} 38... bxa6 {[%clk
0:01:46.5]} 39. Rxc6+ {[%clk 0:02:09.6]} 39... Kf5 {[%clk 0:01:47.2]} 40. g3
{[%clk 0:02:07.1]} 40... a5 {[%clk 0:01:45.5]} 41. Ke2 {[%clk 0:02:04.5]} 41...
Ke4 {[%clk 0:01:43.3]} 42. f3+ {[%clk 0:02:04.3]} 42... Kd5 {[%clk 0:01:42.5]}
43. Rc5+ {[%clk 0:02:04.6]} 43... Kd6 {[%clk 0:01:42.8]} 44. Kd3 {[%clk
0:02:04.6]} 44... Rb2 {[%clk 0:01:43.1]} 45. Rxa5 {[%clk 0:02:04]} 45... Rg2
{[%clk 0:01:42.7]} 46. g4 {[%clk 0:02:04.2]} 46... Rg3 {[%clk 0:01:42.9]} 47.
Ke3 {[%clk 0:02:03.4]} 47... Rxh3 {[%clk 0:01:42.5]} 48. c4 {[%clk 0:02:04]}
48... g6 {[%clk 0:01:39.7]} 49. Ra6+ {[%clk 0:02:04.1]} 49... Kd7 {[%clk
0:01:38.3]} 50. c5 {[%clk 0:02:04.7]} 50... h5 {[%clk 0:01:37.9]} 51. g5 {[%clk
0:02:01.7]} 51... Rh1 {[%clk 0:01:36]} 52. d5 {[%clk 0:02:01.8]} 52... h4 {[%clk
0:01:35.5]} 53. Ra7+ {[%clk 0:02:01.1]} 53... Kc8 {[%clk 0:01:35.4]} 54. Rxf7
{[%clk 0:01:59.7]} 54... h3 {[%clk 0:01:34.5]} 55. Rh7 {[%clk 0:01:59.7]} 55...
h2 {[%clk 0:01:33.5]} 56. Kf4 {[%clk 0:01:58.1]} 56... Rd1 {[%clk 0:01:31.9]}
57. Rxh2 {[%clk 0:01:57.9]} 57... Rxd5 {[%clk 0:01:32.5]} 58. Rh6 {[%clk
0:01:56]} 58... Rf5+ {[%clk 0:01:22.5]} 59. Kg4 {[%clk 0:01:55.8]} 59... Rxc5
{[%clk 0:01:23.1]} 60. Rxg6 {[%clk 0:01:56]} 60... Rc4+ {[%clk 0:01:23.8]} 61.
f4 {[%clk 0:01:55.9]} 61... Rxa4 {[%clk 0:01:24.7]} 62. Rd6 {[%clk 0:01:55.6]}
1-0

[Event "Early-Titled-Tuesday-Blitz-February-27-2024"]
[Site "Chess.com"]
[Date "2024.02.27"]
[Round "11"]
[White "Leebit02"]
[Black "jcmesafischer"]
[Result "1-0"]
[WhiteElo "2542"]
[BlackElo "2385"]
[TimeControl "180+1"]
[EndTime "10:04:00 PST"]
[Termination "Leebit02 won on time"]

1. d4 {[%clk 0:03:00.9]} 1... Nf6 {[%clk 0:00:16]} 2. c4 {[%clk 0:02:59.4]} 2...
e6 {[%clk 0:00:12.6]} 3. Nf3 {[%clk 0:02:58.6]} 3... d5 {[%clk 0:00:12.7]} 4. g3
{[%clk 0:02:59]} 4... Be7 {[%clk 0:00:08]} 5. Bg2 {[%clk 0:02:58.8]} 5... O-O
{[%clk 0:00:08.3]} 6. O-O {[%clk 0:02:59]} 6... c6 {[%clk 0:00:08.8]} 7. Nc3
{[%clk 0:02:55]} 7... b6 {[%clk 0:00:09]} 8. b3 {[%clk 0:02:43.7]} 8... Ba6
{[%clk 0:00:08.8]} 9. Qd3 {[%clk 0:02:41.4]} 9... Nbd7 {[%clk 0:00:05]} 10. e4
{[%clk 0:02:32.8]} 10... c5 {[%clk 0:00:02.2]} 11. e5 {[%clk 0:02:26.8]} 11...
dxc4 {[%clk 0:00:02.5]} 12. bxc4 {[%clk 0:02:26.8]} 12... Nd5 {[%clk 0:00:02.9]}
13. Ne4 {[%clk 0:02:11.5]} 13... Nb4 {[%clk 0:00:02.4]} 14. Qb1 {[%clk
0:01:27.5]} 14... Bxc4 {[%clk 0:00:02.2]} 15. Rd1 {[%clk 0:01:27.5]} 15... Nd5
{[%clk 0:00:01.2]} 16. Nfg5 {[%clk 0:01:23.4]} 1-0

[Event "Early-Titled-Tuesday-Blitz-February-27-2024"]
[Site "Chess.com"]
[Date "2024.02.27"]
[Round "11"]
[White "kidagent"]
[Black "sathvikadiga"]
[Result "0-1"]
[WhiteElo "2364"]
[BlackElo "2562"]
[TimeControl "180+1"]
[EndTime "10:04:06 PST"]
[Termination "sathvikadiga won by resignation"]

1. c4 {[%clk 0:03:00.9]} 1... Nf6 {[%clk 0:02:59.5]} 2. g3 {[%clk 0:03:00.6]}
2... g6 {[%clk 0:03:00.4]} 3. Bg2 {[%clk 0:03:00.7]} 3... Bg7 {[%clk 0:03:01.3]}
4. Nf3 {[%clk 0:03:00.6]} 4... O-O {[%clk 0:03:02.2]} 5. O-O {[%clk 0:03:00.4]}
5... d6 {[%clk 0:03:03.1]} 6. Nc3 {[%clk 0:02:58.4]} 6... Nc6 {[%clk 0:03:03.4]}
7. e4 {[%clk 0:02:56.7]} 7... e5 {[%clk 0:03:02.7]} 8. d3 {[%clk 0:02:54.8]}
8... Nd4 {[%clk 0:03:02.7]} 9. Nxd4 {[%clk 0:02:52.3]} 9... exd4 {[%clk
0:03:03.6]} 10. Ne2 {[%clk 0:02:52.5]} 10... c5 {[%clk 0:03:02.9]} 11. h3 {[%clk
0:02:53.1]} 11... Nd7 {[%clk 0:02:58.7]} 12. f4 {[%clk 0:02:51.3]} 12... Re8
{[%clk 0:02:58.6]} 13. g4 {[%clk 0:02:50]} 13... Nf8 {[%clk 0:02:57.2]} 14. Ng3
{[%clk 0:02:47]} 14... Bd7 {[%clk 0:02:52]} 15. f5 {[%clk 0:02:44.5]} 15... Be5
{[%clk 0:02:48]} 16. Qf3 {[%clk 0:02:42]} 16... g5 {[%clk 0:02:46.6]} 17. Bd2
{[%clk 0:02:23.1]} 17... h6 {[%clk 0:02:35.7]} 18. Nh5 {[%clk 0:02:20.5]} 18...
f6 {[%clk 0:02:35.3]} 19. h4 {[%clk 0:02:20.3]} 19... Kf7 {[%clk 0:02:35]} 20.
hxg5 {[%clk 0:02:20.2]} 20... hxg5 {[%clk 0:02:35.8]} 21. Ng3 {[%clk 0:02:13.8]}
21... Bc6 {[%clk 0:02:34.5]} 22. Kf2 {[%clk 0:02:12.4]} 22... Nd7 {[%clk
0:02:34.8]} 23. Rh1 {[%clk 0:02:11.2]} 23... Rh8 {[%clk 0:02:35.2]} 24. Rxh8
{[%clk 0:02:10.4]} 24... Qxh8 {[%clk 0:02:36.1]} 25. Rh1 {[%clk 0:02:09.9]}
25... Qg7 {[%clk 0:02:30.7]} 26. Nh5 {[%clk 0:02:02.3]} 26... Qf8 {[%clk
0:02:23.3]} 27. Qh3 {[%clk 0:01:59.2]} 27... Qh8 {[%clk 0:02:22.9]} 28. Ng3
{[%clk 0:01:51.5]} 28... Qxh3 {[%clk 0:02:17.3]} 29. Rxh3 {[%clk 0:01:52.4]}
29... Bxg3+ {[%clk 0:02:17.6]} 30. Kxg3 {[%clk 0:01:47.7]} 30... Kg7 {[%clk
0:02:17.5]} 31. Bf1 {[%clk 0:01:46.1]} 31... Ne5 {[%clk 0:02:15.7]} 32. Be2
{[%clk 0:01:46.1]} 32... b5 {[%clk 0:02:15.2]} 33. cxb5 {[%clk 0:01:33.2]} 33...
Bxb5 {[%clk 0:02:16.1]} 34. Kf2 {[%clk 0:01:33]} 34... Rh8 {[%clk 0:02:11.4]}
35. Rxh8 {[%clk 0:01:28.8]} 35... Kxh8 {[%clk 0:02:12.3]} 36. Ba5 {[%clk
0:01:22.5]} 36... Bxd3 {[%clk 0:02:05.2]} 37. Bc7 {[%clk 0:01:15.8]} 37... Bxe2
{[%clk 0:01:55.4]} 38. Kxe2 {[%clk 0:01:15.7]} 38... Nf7 {[%clk 0:01:48.2]} 39.
Kd3 {[%clk 0:01:12.4]} 39... Kg7 {[%clk 0:01:48.4]} 40. Kc4 {[%clk 0:01:12.4]}
40... Kf8 {[%clk 0:01:48.9]} 41. Kd5 {[%clk 0:01:12.3]} 41... Ke7 {[%clk
0:01:49.1]} 42. Kc6 {[%clk 0:01:04.2]} 42... Ne5+ {[%clk 0:01:44.9]} 43. Kd5
{[%clk 0:00:59.2]} 43... d3 {[%clk 0:01:42.8]} 44. Ba5 {[%clk 0:00:52]} 44...
Nf3 {[%clk 0:01:42.3]} 0-1

[Event "Early-Titled-Tuesday-Blitz-February-27-2024"]
[Site "Chess.com"]
[Date "2024.02.27"]
[Round "11"]
[White "Binary010"]
[Black "sotochess"]
[Result "1-0"]
[WhiteElo "2837"]
[BlackElo "2636"]
[TimeControl "180+1"]
[EndTime "10:04:07 PST"]
[Termination "Binary010 won on time"]

1. d4 {[%clk 0:03:00.9]} 1... Nf6 {[%clk 0:02:58.3]} 2. c4 {[%clk 0:03:00.9]}
2... e6 {[%clk 0:02:52]} 3. Nf3 {[%clk 0:03:00.9]} 3... d5 {[%clk 0:02:50.5]} 4.
Nc3 {[%clk 0:03:00.8]} 4... Bb4 {[%clk 0:02:45.7]} 5. Qa4+ {[%clk 0:02:52]} 5...
Nc6 {[%clk 0:02:42.1]} 6. e3 {[%clk 0:02:52.4]} 6... Ne4 {[%clk 0:02:31.1]} 7.
Qc2 {[%clk 0:02:43.1]} 7... Nxc3 {[%clk 0:01:46.1]} 8. bxc3 {[%clk 0:02:42.6]}
8... Be7 {[%clk 0:01:46.1]} 9. cxd5 {[%clk 0:02:32.2]} 9... exd5 {[%clk
0:01:45.7]} 10. Bd3 {[%clk 0:02:33]} 10... h6 {[%clk 0:01:43.5]} 11. O-O {[%clk
0:02:33.1]} 11... O-O {[%clk 0:01:42.6]} 12. Rb1 {[%clk 0:02:24.3]} 12... Re8
{[%clk 0:01:14.7]} 13. Bd2 {[%clk 0:02:22.2]} 13... b6 {[%clk 0:00:54.8]} 14. c4
{[%clk 0:02:16.3]} 14... dxc4 {[%clk 0:00:38.5]} 15. Bh7+ {[%clk 0:02:07.8]}
15... Kf8 {[%clk 0:00:32.1]} 16. Be4 {[%clk 0:02:08.7]} 16... Bd7 {[%clk
0:00:30.4]} 17. Qxc4 {[%clk 0:02:06.1]} 17... Na5 {[%clk 0:00:19]} 18. Bxa5
{[%clk 0:02:05.9]} 18... bxa5 {[%clk 0:00:18.8]} 19. Bxa8 {[%clk 0:02:03.7]}
19... Qxa8 {[%clk 0:00:19.1]} 20. Qxc7 {[%clk 0:01:54.2]} 20... Bf5 {[%clk
0:00:18.5]} 21. Rb7 {[%clk 0:01:46]} 21... Be4 {[%clk 0:00:13.8]} 22. Rxa7
{[%clk 0:01:46.3]} 22... Qb8 {[%clk 0:00:08.5]} 23. Qxb8 {[%clk 0:01:46]} 23...
Rxb8 {[%clk 0:00:09.4]} 24. Rxa5 {[%clk 0:01:44.5]} 24... Bb4 {[%clk 0:00:06.4]}
25. Ra7 {[%clk 0:01:42]} 25... Bd3 {[%clk 0:00:01.9]} 26. Ne5 {[%clk 0:01:38]}
1-0

[Event "Early-Titled-Tuesday-Blitz-February-27-2024"]
[Site "Chess.com"]
[Date "2024.02.27"]
[Round "11"]
[White "PawnEatingZombie"]
[Black "Atousa"]
[Result "0-1"]
[WhiteElo "2190"]
[BlackElo "2472"]
[TimeControl "180+1"]
[EndTime "10:04:17 PST"]
[Termination "Atousa won by checkmate"]

1. e4 {[%clk 0:02:55.5]} 1... c5 {[%clk 0:02:58]} 2. c3 {[%clk 0:02:54.3]} 2...
Nf6 {[%clk 0:02:56.5]} 3. e5 {[%clk 0:02:54.5]} 3... Nd5 {[%clk 0:02:56.1]} 4.
Nf3 {[%clk 0:02:55.1]} 4... d6 {[%clk 0:02:54.9]} 5. Bb5+ {[%clk 0:02:54.6]}
5... Bd7 {[%clk 0:02:50.5]} 6. Bc4 {[%clk 0:02:52.1]} 6... e6 {[%clk 0:02:50.3]}
7. O-O {[%clk 0:02:48.7]} 7... Nc6 {[%clk 0:02:48.7]} 8. d4 {[%clk 0:02:46]}
8... cxd4 {[%clk 0:02:48.1]} 9. cxd4 {[%clk 0:02:45.9]} 9... Be7 {[%clk
0:02:48.4]} 10. Nc3 {[%clk 0:02:40.1]} 10... Nxc3 {[%clk 0:02:46.6]} 11. bxc3
{[%clk 0:02:39.8]} 11... Qc7 {[%clk 0:02:46]} 12. Qe2 {[%clk 0:02:39.2]} 12...
O-O {[%clk 0:02:42.2]} 13. Bd3 {[%clk 0:02:37.4]} 13... dxe5 {[%clk 0:02:37.5]}
14. dxe5 {[%clk 0:02:35.9]} 14... Rfd8 {[%clk 0:02:37.8]} 15. Qe4 {[%clk
0:02:34]} 15... g6 {[%clk 0:02:38.3]} 16. Rd1 {[%clk 0:02:17.9]} 16... Be8
{[%clk 0:02:36.2]} 17. h4 {[%clk 0:02:16.2]} 17... Rd5 {[%clk 0:02:35.3]} 18.
Bf4 {[%clk 0:01:57.3]} 18... Rad8 {[%clk 0:02:30.7]} 19. h5 {[%clk 0:01:49.4]}
19... Qa5 {[%clk 0:02:08.7]} 20. c4 {[%clk 0:01:44.2]} 20... R5d7 {[%clk
0:02:00.6]} 21. hxg6 {[%clk 0:01:40.5]} 21... hxg6 {[%clk 0:01:59.7]} 22. Rab1
{[%clk 0:01:16.8]} 22... Qxa2 {[%clk 0:01:32.9]} 23. g3 {[%clk 0:01:17]} 23...
Bc5 {[%clk 0:01:04.1]} 24. Be3 {[%clk 0:01:14.2]} 24... Bxe3 {[%clk 0:00:58.9]}
25. Qxe3 {[%clk 0:01:14.1]} 25... Rxd3 {[%clk 0:00:56.1]} 26. Qh6 {[%clk
0:01:13.6]} 26... Rxd1+ {[%clk 0:00:50.3]} 27. Rxd1 {[%clk 0:01:12.9]} 27...
Rxd1+ {[%clk 0:00:51.2]} 28. Kg2 {[%clk 0:01:13.2]} 28... Qe2 {[%clk 0:00:31.7]}
29. Ng5 {[%clk 0:01:12.5]} 29... Qf1+ {[%clk 0:00:30.4]} 30. Kf3 {[%clk
0:01:12.2]} 30... Nxe5+ {[%clk 0:00:29.6]} 31. Kf4 {[%clk 0:01:10.7]} 31...
Qxf2+ {[%clk 0:00:26.8]} 32. Kxe5 {[%clk 0:01:10.8]} 32... Qf5# {[%clk 0:00:26]}
0-1

[Event "Early-Titled-Tuesday-Blitz-February-27-2024"]
[Site "Chess.com"]
[Date "2024.02.27"]
[Round "11"]
[White "NewBornNow"]
[Black "FREDERICKtheMATE"]
[Result "0-1"]
[WhiteElo "2866"]
[BlackElo "2709"]
[TimeControl "180+1"]
[EndTime "10:04:22 PST"]
[Termination "FREDERICKtheMATE won by resignation"]

1. e4 {[%clk 0:03:00.9]} 1... c6 {[%clk 0:02:59.3]} 2. d4 {[%clk 0:03:00.2]}
2... d5 {[%clk 0:03:00.2]} 3. Nc3 {[%clk 0:02:58.9]} 3... dxe4 {[%clk
0:02:59.9]} 4. Nxe4 {[%clk 0:02:57.7]} 4... Nf6 {[%clk 0:03:00.8]} 5. Nxf6+
{[%clk 0:02:52.5]} 5... exf6 {[%clk 0:03:01.7]} 6. Be2 {[%clk 0:02:48]} 6... Bd6
{[%clk 0:03:01.7]} 7. Bf3 {[%clk 0:02:47.5]} 7... Qc7 {[%clk 0:03:01.1]} 8. Ne2
{[%clk 0:02:46.1]} 8... O-O {[%clk 0:02:59.1]} 9. Be3 {[%clk 0:02:44.6]} 9...
Re8 {[%clk 0:02:57.3]} 10. Qd2 {[%clk 0:02:43.8]} 10... Bf5 {[%clk 0:02:56.4]}
11. O-O-O {[%clk 0:02:41.5]} 11... Nd7 {[%clk 0:02:56.9]} 12. Ng3 {[%clk
0:02:36.5]} 12... Bg6 {[%clk 0:02:55.5]} 13. Bh5 {[%clk 0:02:28]} 13... Nb6
{[%clk 0:02:49.7]} 14. Bxg6 {[%clk 0:02:27.4]} 14... fxg6 {[%clk 0:02:49.5]} 15.
Qd3 {[%clk 0:02:26.3]} 15... f5 {[%clk 0:02:48.2]} 16. Bd2 {[%clk 0:02:24.7]}
16... Qf7 {[%clk 0:02:46.2]} 17. Kb1 {[%clk 0:02:22.8]} 17... Qc4 {[%clk
0:02:43.2]} 18. Qxc4+ {[%clk 0:02:15.8]} 18... Nxc4 {[%clk 0:02:44.1]} 19. b3
{[%clk 0:02:14.7]} 19... Nb6 {[%clk 0:02:37.9]} 20. Rhe1 {[%clk 0:02:09.2]}
20... Nd5 {[%clk 0:02:34.3]} 21. c4 {[%clk 0:02:06.9]} 21... Nf6 {[%clk
0:02:34]} 22. f3 {[%clk 0:02:03.1]} 22... Kf7 {[%clk 0:02:32.8]} 23. Kc2 {[%clk
0:02:00.6]} 23... Rxe1 {[%clk 0:02:30.5]} 24. Rxe1 {[%clk 0:02:00]} 24... Re8
{[%clk 0:02:31.4]} 25. Rxe8 {[%clk 0:01:59.1]} 25... Kxe8 {[%clk 0:02:32.3]} 26.
Nf1 {[%clk 0:01:53.3]} 26... f4 {[%clk 0:02:29.2]} 27. Kd3 {[%clk 0:01:52.3]}
27... g5 {[%clk 0:02:29.1]} 28. h3 {[%clk 0:01:51.1]} 28... h5 {[%clk
0:02:24.6]} 29. Nh2 {[%clk 0:01:49.5]} 29... Kd7 {[%clk 0:02:22.8]} 30. Bc3
{[%clk 0:01:49.2]} 30... Ke6 {[%clk 0:02:22.6]} 31. Nf1 {[%clk 0:01:46.6]} 31...
g4 {[%clk 0:02:15.7]} 32. d5+ {[%clk 0:01:40.6]} 32... cxd5 {[%clk 0:02:15.1]}
33. Bxf6 {[%clk 0:01:38]} 33... gxf3 {[%clk 0:02:05]} 34. gxf3 {[%clk
0:01:35.1]} 34... dxc4+ {[%clk 0:02:04.3]} 35. Kxc4 {[%clk 0:01:34.3]} 35...
Kxf6 {[%clk 0:02:04.8]} 36. Kd5 {[%clk 0:01:31.8]} 36... Bc7 {[%clk 0:02:01.1]}
37. Nd2 {[%clk 0:01:30.1]} 37... g5 {[%clk 0:01:59.6]} 38. Ne4+ {[%clk
0:01:29.3]} 38... Kf5 {[%clk 0:01:59.6]} 39. Nc5 {[%clk 0:01:24.5]} 39... g4
{[%clk 0:01:57.2]} 40. hxg4+ {[%clk 0:01:24.5]} 40... hxg4 {[%clk 0:01:58.1]}
41. fxg4+ {[%clk 0:01:23.1]} 41... Kxg4 {[%clk 0:01:59]} 42. Ke4 {[%clk
0:01:01]} 42... f3 {[%clk 0:01:56.6]} 43. Nd3 {[%clk 0:01:00.6]} 43... Kg3
{[%clk 0:01:51.2]} 44. a4 {[%clk 0:00:58.8]} 44... f2 {[%clk 0:01:48.4]} 45.
Nxf2 {[%clk 0:00:58.6]} 45... Kxf2 {[%clk 0:01:49.3]} 46. b4 {[%clk 0:00:58]}
46... a5 {[%clk 0:01:46.2]} 47. bxa5 {[%clk 0:00:54.1]} 47... Bxa5 {[%clk
0:01:47.1]} 48. Kd5 {[%clk 0:00:54]} 48... b6 {[%clk 0:01:47.4]} 49. Kc4 {[%clk
0:00:53.8]} 49... Ke3 {[%clk 0:01:47.4]} 0-1

[Event "Early-Titled-Tuesday-Blitz-February-27-2024"]
[Site "Chess.com"]
[Date "2024.02.27"]
[Round "11"]
[White "Tashik"]
[Black "ClauSanLuis"]
[Result "1-0"]
[WhiteElo "2491"]
[BlackElo "2315"]
[TimeControl "180+1"]
[EndTime "10:04:27 PST"]
[Termination "Tashik won by resignation"]

1. c4 {[%clk 0:03:00.3]} 1... e6 {[%clk 0:02:58]} 2. Nf3 {[%clk 0:02:59.7]} 2...
d5 {[%clk 0:02:57.6]} 3. g3 {[%clk 0:03:00.3]} 3... c5 {[%clk 0:02:54.4]} 4. Bg2
{[%clk 0:03:00.1]} 4... Nc6 {[%clk 0:02:53.7]} 5. cxd5 {[%clk 0:02:58]} 5...
exd5 {[%clk 0:02:51.5]} 6. d4 {[%clk 0:02:58.9]} 6... Nf6 {[%clk 0:02:47.5]} 7.
O-O {[%clk 0:02:58]} 7... cxd4 {[%clk 0:02:43.2]} 8. Nxd4 {[%clk 0:02:57.3]}
8... Bc5 {[%clk 0:02:43.9]} 9. Nxc6 {[%clk 0:02:50.2]} 9... bxc6 {[%clk
0:02:43]} 10. Qc2 {[%clk 0:02:49.4]} 10... Qb6 {[%clk 0:02:35.6]} 11. Nc3 {[%clk
0:02:47.6]} 11... Bd6 {[%clk 0:02:26]} 12. e4 {[%clk 0:02:39]} 12... Be6 {[%clk
0:02:17.6]} 13. Re1 {[%clk 0:02:18]} 13... dxe4 {[%clk 0:02:07.6]} 14. Nxe4
{[%clk 0:02:15.9]} 14... Nxe4 {[%clk 0:02:06.8]} 15. Bxe4 {[%clk 0:02:13.9]}
15... Rc8 {[%clk 0:01:59.7]} 16. Bf5 {[%clk 0:02:13.3]} 16... O-O {[%clk
0:01:58.2]} 17. Bxh7+ {[%clk 0:02:01.4]} 17... Kh8 {[%clk 0:01:56.9]} 18. Bf5
{[%clk 0:01:41.3]} 18... Bb4 {[%clk 0:01:56]} 19. Re4 {[%clk 0:01:33.4]} 19...
g6 {[%clk 0:01:30.6]} 20. Bxe6 {[%clk 0:01:26.5]} 20... fxe6 {[%clk 0:01:27.5]}
21. Rxe6 {[%clk 0:00:54.5]} 21... Bc5 {[%clk 0:01:27.3]} 22. Be3 {[%clk
0:00:51.3]} 22... Bxe3 {[%clk 0:01:24.7]} 23. fxe3 {[%clk 0:00:50.4]} 23... Rf5
{[%clk 0:01:22.2]} 24. Qc3+ {[%clk 0:00:42.9]} 24... Kh7 {[%clk 0:01:14.2]} 25.
Re7+ {[%clk 0:00:42.5]} 25... Kh6 {[%clk 0:01:14.3]} 26. Qg7+ {[%clk 0:00:39.6]}
26... Kh5 {[%clk 0:01:13.3]} 27. Qh7+ {[%clk 0:00:37.7]} 27... Kg4 {[%clk
0:01:10.8]} 28. Qxg6+ {[%clk 0:00:23.3]} 1-0